bitfinex/quotes_ETHUSD_20241009
["timestamp","ask_amount","ask_price","bid_price","bid_amount"]
[1728451366903,0.11356526,2446.7,2446.6,1.73467478]
[1728451367223,2.14348839,2446.8,2446.6,1.73467478]
[1728451367382,0.11356526,2446.7,2446.6,1.73467478]
[1728451367734,2.14348839,2446.8,2446.6,1.73467478]
[1728451367891,0.11356526,2446.7,2446.6,1.73467478]
[1728451368094,2.14348839,2446.8,2446.6,1.73467478]
[1728451368499,0.11356526,2446.7,2446.6,1.73467478]
[1728451368887,2.14348839,2446.8,2446.6,1.73467478]
[1728451369094,0.11357489,2446.7,2446.6,1.73467478]
[1728451369410,2.14348839,2446.8,2446.6,1.73467478]
[1728451369611,0.113598,2446.7,2446.6,1.73467478]
[1728451370125,2.14348839,2446.8,2446.6,1.73467478]
[1728451370307,0.113598,2446.7,2446.6,1.73467478]
[1728451370616,2.14348839,2446.8,2446.6,1.73467478]
[1728451370791,0.113598,2446.7,2446.6,1.73467478]
[1728451371192,2.14348839,2446.8,2446.6,1.73467478]
[1728451371387,0.113598,2446.7,2446.6,1.73467478]
[1728451371806,2.14302196,2446.8,2446.6,1.73467478]
[1728451372010,0.113598,2446.7,2446.6,1.73467478]
[1728451372451,2.14302196,2446.8,2446.6,1.73467478]
[1728451372613,0.113598,2446.7,2446.6,1.73467478]
[1728451372936,2.14302196,2446.8,2446.6,1.73467478]
[1728451373138,0.113598,2446.7,2446.6,1.73467478]
[1728451373292,2.14302196,2446.8,2446.6,1.73467478]
[1728451373495,0.113598,2446.7,2446.6,1.73467478]
[1728451373731,2.14302196,2446.8,2446.6,1.73467478]
[1728451373938,0.113598,2446.7,2446.6,1.73467478]
[1728451374124,2.14302196,2446.8,2446.6,1.73467478]
[1728451374310,0.113598,2446.7,2446.6,1.73467478]
[1728451374642,2.14302196,2446.8,2446.6,1.73467478]
[1728451374796,0.113598,2446.7,2446.6,1.73467478]
[1728451375242,2.14302196,2446.8,2446.6,1.73467478]
[1728451375441,0.113598,2446.7,2446.6,1.73467478]
[1728451375736,2.14302196,2446.8,2446.6,1.73467478]
[1728451375941,0.113598,2446.7,2446.6,1.73467478]
[1728451376155,2.14302196,2446.8,2446.6,1.73467478]
[1728451376300,0.113598,2446.7,2446.6,1.73467478]
[1728451376505,2.14307987,2446.8,2446.6,1.73467478]
[1728451376725,0.113598,2446.7,2446.6,1.73467478]
[1728451377038,2.14307987,2446.8,2446.6,1.73467478]
[1728451377255,0.113598,2446.7,2446.6,1.73467478]
[1728451377548,2.14307987,2446.8,2446.6,1.73467478]
[1728451377751,0.11357489,2446.7,2446.6,1.73467478]
[1728451377914,6.86469434,2447.0,2446.6,1.73467478]
[1728451377915,2.14307987,2446.9,2446.6,1.73467478]
[1728451378117,0.11366335,2446.8,2446.6,1.73467478]
[1728451378315,2.25674322,2446.8,2446.6,1.73467478]
[1728451378533,0.11366335,2446.8,2446.6,1.73467478]
[1728451382407,2.14256591,2447.2,2447.1,4.08646]
[1728451382542,2.14256591,2447.6,2447.3,0.8232]
[1728451382888,2.14256591,2448.0,2447.8,4.08527]
[1728451383033,2.14256591,2448.1,2447.9,1.73467478]
[1728451383234,2.14256591,2448.3,2447.9,1.73467478]
[1728451383444,2.14256591,2448.3,2448.2,1.73467478]
[1728451383874,5.14256591,2448.3,2448.2,1.73467478]
[1728451384079,2.14256591,2448.3,2448.2,1.73467478]
[1728451384235,5.34648715,2448.4,2448.2,1.73467478]
[1728451384437,3.20392124,2448.4,2448.2,1.73467478]
[1728451385475,7.28826124,2448.4,2448.2,1.73467478]
[1728451385838,3.20392124,2448.4,2448.2,1.73467478]
[1728451386980,6.22147849,2448.7,2448.2,1.73467478]
[1728451386981,4.08389,2448.7,2448.2,5.81929478]
[1728451387282,4.08389,2448.7,2448.1,0.778]
[1728451387283,4.08363,2448.8,2448.6,1.73467478]
[1728451387504,4.08343,2449.0,2448.6,1.73467478]
[1728451388087,19.93,2448.9,2448.8,1.73467478]
[1728451388285,20.13359944,2448.9,2448.8,1.73467478]
[1728451388701,19.93,2448.9,2448.8,1.73467478]
[1728451388918,19.93,2448.9,2448.8,6.63400478]
[1728451390213,20.01334484,2448.9,2448.8,6.63400478]
[1728451390385,20.01334484,2448.9,2448.8,7.70578426]
[1728451392997,0.08334484,2448.9,2448.8,7.70578426]
[1728451393393,0.20374263,2449.5,2449.1,4.08304]
[1728451393703,0.20374263,2449.5,2449.3,1.73467478]
[1728451393907,0.08081732,2449.4,2449.3,1.73467478]
[1728451400406,0.08081732,2449.4,2449.1,5.81769478]
[1728451401314,4.16356732,2449.4,2448.8,4.08359]
[1728451401497,3.0,2449.3,2448.8,5.81826478]
[1728451401897,0.07790967,2449.2,2448.8,1.73467478]
[1728451402345,3.0,2449.3,2448.8,1.73467478]
[1728451402588,0.07773383,2449.2,2448.8,1.73467478]
[1728451402935,3.0,2449.3,2448.8,1.73467478]
[1728451403137,0.07772987,2449.2,2448.8,1.73467478]
[1728451403383,7.08282,2449.3,2448.8,1.73467478]
[1728451403544,0.07772987,2449.2,2448.8,1.73467478]
[1728451403745,7.08282,2449.3,2448.8,1.73467478]
[1728451403964,0.07772987,2449.2,2448.8,1.73467478]
[1728451404166,7.08282,2449.3,2448.8,1.73467478]
[1728451404471,0.07772987,2449.2,2448.8,1.73467478]
[1728451404677,0.07772987,2449.2,2448.8,5.81819478]
[1728451404840,3.0,2449.3,2448.8,5.81819478]
[1728451405040,0.07764397,2449.1,2448.8,5.81819478]
[1728451405240,0.07772987,2449.2,2448.8,5.81819478]
[1728451405447,0.07755806,2449.0,2448.8,5.81819478]
[1728451405652,3.0,2449.3,2448.8,5.81819478]
[1728451405840,0.07747215,2448.9,2448.8,5.81819478]
[1728451406041,3.0,2449.3,2448.8,6.88922326]
[1728451406266,0.07747215,2448.9,2448.8,5.81819478]
[1728451406442,3.0,2449.3,2448.8,5.81819478]
[1728451406660,0.07747215,2448.9,2448.8,5.81819478]
[1728451406843,3.0,2449.3,2448.8,5.81819478]
[1728451407380,0.07772303,2449.2,2448.8,5.81819478]
[1728451407678,3.0,2449.3,2448.8,5.81819478]
[1728451407851,0.07763713,2449.1,2448.8,5.81819478]
[1728451408052,0.07772303,2449.2,2448.8,5.81819478]
[1728451408279,3.0,2449.3,2448.8,5.81819478]
[1728451408280,0.07755122,2449.0,2448.8,5.81819478]
[1728451408456,3.0,2449.3,2448.8,5.81819478]
[1728451408651,0.07746531,2448.9,2448.8,6.37175183]
[1728451408856,3.0,2449.3,2448.9,4.08344]
[1728451409186,3.0,2449.3,2449.0,1.73467478]
[1728451409360,4.28425953,2449.6,2449.0,1.73467478]
[1728451409361,3.0,2449.5,2449.0,1.73467478]
[1728451409561,7.08248,2449.5,2449.0,1.73467478]
[1728451411062,3.0,2449.5,2449.0,5.81793478]
[1728451411274,3.0,2449.5,2449.2,1.73467478]
[1728451411581,3.0,2449.6,2449.2,1.73467478]
[1728451412586,3.0,2449.7,2449.2,5.81762478]
[1728451412783,3.0,2449.7,2449.4,1.73467478]
[1728451413285,3.0,2449.7,2449.5,0.7724]
[1728451413453,0.20627578,2449.8,2449.5,0.7724]
[1728451414286,0.20627578,2449.8,2449.6,1.73467478]
[1728451414845,4.08132,2450.2,2449.6,2.39362726]
[1728451415151,4.08132,2450.2,2449.8,1.73467478]
[1728451415152,0.07583019,2450.1,2449.8,1.73467478]
[1728451416488,3.07583019,2450.1,2450.0,1.73467478]
[1728451416688,0.07583019,2450.1,2450.0,1.73467478]
[1728451416887,0.07583019,2450.1,2450.0,2.31633626]
[1728451417094,11.51073,2450.6,2450.0,7.22315626]
[1728451417387,4.0805,2450.7,2450.1,4.08139]
[1728451417637,0.07600904,2450.6,2450.4,1.73467478]
[1728451418744,3.07600904,2450.6,2450.4,1.73467478]
[1728451419037,4.15667904,2450.6,2450.4,1.73467478]
[1728451420539,4.15667904,2450.6,2450.2,1.73467478]
[1728451421344,8.23743904,2450.6,2450.2,2.45699041]
[1728451421937,4.0808,2450.5,2450.2,2.45699041]
[1728451422340,0.07574631,2450.4,2450.2,2.45699041]
[1728451423935,4.08067,2450.6,2450.2,2.45699041]
[1728451424130,0.07572782,2450.3,2450.2,2.45699041]
[1728451424330,8.16143,2450.6,2450.2,2.45699041]
[1728451424531,0.07565927,2450.3,2450.2,2.45699041]
[1728451424732,8.16143,2450.6,2450.2,2.45699041]
[1728451424921,0.07565927,2450.3,2450.2,2.45699041]
[1728451425126,8.16143,2450.6,2450.2,2.45699041]
[1728451425322,0.07565927,2450.3,2450.2,2.45699041]
[1728451425522,8.16143,2450.6,2450.2,2.45699041]
[1728451425723,8.16143,2450.6,2450.2,0.72231563]
[1728451425724,0.07565927,2450.3,2450.2,0.72231563]
[1728451425924,4.08067,2450.6,2450.2,0.72231563]
[1728451425925,4.08084,2450.5,2450.2,0.72231563]
[1728451426419,0.07574511,2450.4,2450.2,0.72231563]
[1728451427654,0.07574511,2450.4,2450.0,3.14153626]
[1728451432821,0.07574511,2450.4,2450.2,1.73467478]
[1728451435437,0.07574511,2450.4,2450.0,3.14153626]
[1728451437048,0.07574511,2450.4,2450.2,1.73467478]
[1728451440350,0.07574511,2450.4,2450.0,7.22313626]
[1728451440523,0.07574511,2450.4,2450.1,0.72231363]
[1728451441563,8.1614,2450.6,2450.1,0.72231363]
[1728451441763,0.07587728,2450.3,2450.1,0.72231363]
[1728451441972,4.08085,2450.5,2450.1,0.72231363]
[1728451442128,0.07579144,2450.2,2450.1,0.72231363]
[1728451442330,4.08085,2450.5,2450.1,0.72231363]
[1728451442590,4.08085,2450.5,2450.2,0.79454499]
[1728451442969,4.08098,2450.4,2450.0,3.14153626]
[1728451443536,4.0808,2450.5,2450.0,7.22314626]
[1728451443750,4.0808,2450.5,2450.1,0.72231463]
[1728451443956,4.0808,2450.5,2450.0,3.14153626]
[1728451445271,0.07596068,2450.4,2450.0,3.14153626]
[1728451445839,0.07596068,2450.4,2450.0,7.22314626]
[1728451448450,4.08166,2450.0,2449.5,0.8284]
[1728451448774,4.08138,2450.2,2449.8,1.73467478]
[1728451449188,0.07586343,2450.1,2449.8,1.73467478]
[1728451449388,0.07586343,2450.1,2449.8,2.39920926]
[1728451449891,3.0,2450.2,2449.8,2.39920926]
[1728451450093,0.07576065,2450.0,2449.8,2.39920926]
[1728451450253,8.16275,2450.2,2449.8,2.39920926]
[1728451450448,4.08135,2450.2,2449.9,0.32276093]
[1728451451259,7.08114,2450.3,2449.9,0.32276093]
[1728451451971,4.0813,2450.2,2449.9,0.32276093]
[1728451455496,4.0813,2450.2,2449.8,2.39920926]
[1728451456097,8.1627,2450.2,2449.8,0.66453448]
[1728451456412,4.08147,2450.1,2449.8,0.66453448]
[1728451456570,8.16273,2450.2,2449.8,0.66453448]
[1728451457211,4.0813,2450.2,2449.8,0.66453448]
[1728451457713,8.1627,2450.2,2449.8,0.66453448]
[1728451457915,4.0813,2450.2,2449.8,0.66453448]
[1728451460313,0.07579859,2450.1,2449.8,0.66453448]
[1728451462311,0.07579859,2450.1,2449.7,0.8284]
[1728451464814,0.07579859,2450.1,2449.7,4.91052]
[1728451466046,9.42949859,2450.3,2449.7,4.91052]
[1728451466439,0.07590087,2450.2,2449.7,4.91052]
[1728451466613,0.07590087,2450.2,2449.7,0.8284]
[1728451466818,0.07590087,2450.2,2450.0,1.73467478]
[1728451467020,3.0,2450.5,2450.2,4.08126]
[1728451467021,2.14165927,2450.5,2450.2,4.08126]
[1728451467314,13.65203927,2450.8,2450.4,0.7564]
[1728451467558,2.14165927,2450.8,2450.5,1.73467478]
[1728451467724,6.22188927,2450.9,2450.5,1.73467478]
[1728451468059,2.14165927,2450.8,2450.5,1.73467478]
[1728451468646,2.14165927,2450.9,2450.8,0.8327]
[1728451468861,2.56999112,2451.2,2450.8,0.8327]
[1728451468862,2.14165927,2451.2,2450.8,2.56737478]
[1728451469071,2.34754137,2451.3,2451.0,1.73467478]
[1728451469225,4.2854821,2451.3,2451.0,1.73467478]
[1728451469751,0.2058821,2451.3,2451.0,1.73467478]
[1728451469956,6.22088927,2451.5,2451.2,1.73467478]
[1728451470459,4.07923,2451.5,2451.0,1.73467478]
[1728451471015,8.36583385,2451.5,2451.0,1.73467478]
[1728451471249,7.07931,2451.4,2451.0,1.73467478]
[1728451473157,3.0,2451.4,2451.0,1.73467478]
[1728451473369,3.0,2451.4,2451.1,0.8223]
[1728451473665,3.0,2451.4,2451.2,1.73467478]
[1728451474243,7.71845943,2451.7,2451.2,1.73467478]
[1728451474435,7.07898,2451.6,2451.4,1.73467478]
[1728451474748,4.07916,2451.5,2451.2,1.73467478]
[1728451474947,3.0,2451.6,2451.2,2.05684781]
[1728451475134,7.07899,2451.6,2451.2,2.05684781]
[1728451475467,0.0717539,2451.5,2451.2,2.05684781]
[1728451476868,0.0717539,2451.5,2451.4,1.73467478]
[1728451477065,0.0717539,2451.5,2451.4,2.73515956]
[1728451477757,4.07855,2451.9,2451.4,2.73515956]
[1728451478079,4.07855,2451.9,2451.6,1.73467478]
[1728451478695,4.1992434,2452.0,2451.6,1.73467478]
[1728451478866,4.1992434,2452.0,2451.8,2.55927478]
[1728451478867,7.1993734,2452.0,2451.8,2.55927478]
[1728451479281,3.1209334,2452.0,2451.8,2.55927478]
[1728451480767,0.1209334,2452.0,2451.8,2.55927478]
[1728451483499,0.1209334,2452.0,2451.8,6.63783478]
[1728451483856,0.1209334,2452.0,2451.9,1.07165648]
[1728451486324,0.1209334,2452.0,2451.8,2.55927478]
[1728451486690,0.1209334,2452.0,2451.8,0.8246]
[1728451488620,4.1992634,2452.0,2451.8,0.8246]
[1728451488833,4.1992634,2452.0,2451.5,3.74217815]
[1728451488834,4.07866,2451.8,2451.4,0.20568478]
[1728451489600,4.07859,2451.9,2451.4,0.20568478]
[1728451489926,4.07881,2451.7,2451.4,0.20568478]
[1728451490219,0.0649349,2451.6,2451.4,0.20568478]
[1728451491489,4.07859,2451.9,2451.4,0.20568478]
[1728451491688,0.06496655,2451.5,2451.4,0.20568478]
[1728451491889,4.07876,2451.8,2451.4,0.20568478]
[1728451492105,0.06495918,2451.5,2451.4,0.20568478]
[1728451492386,4.07859,2451.9,2451.4,0.20568478]
[1728451492834,0.065222,2451.8,2451.4,0.20568478]
[1728451493840,4.143902,2451.8,2451.4,0.20568478]
[1728451494856,4.143902,2451.8,2451.3,0.8209]
[1728451494857,4.07895,2451.7,2451.3,0.8209]
[1728451495211,0.06505177,2451.6,2451.3,0.8209]
[1728451498159,4.07868,2451.8,2451.3,0.8209]
[1728451498360,0.06488396,2451.5,2451.3,0.8209]
[1728451498566,8.15743,2451.8,2451.3,2.12535312]
[1728451498764,0.06479821,2451.4,2451.3,2.12535312]
[1728451498927,8.15743,2451.8,2451.3,2.12535312]
[1728451499135,0.06479259,2451.4,2451.3,2.12535312]
[1728451499343,4.0788,2451.7,2451.3,2.12535312]
[1728451499556,4.0788,2451.7,2451.4,1.02693043]
[1728451500967,4.0788,2451.7,2451.3,0.8209]
[1728451501465,4.07897,2451.6,2451.3,0.8209]
[1728451501767,4.07872,2451.8,2451.3,0.8209]
[1728451501924,4.0788,2451.7,2451.3,0.8209]
[1728451504573,4.07872,2451.8,2451.3,0.8209]
[1728451504885,4.40603472,2452.0,2451.6,3.74217815]
[1728451504886,3.0,2451.9,2451.6,3.74217815]
[1728451505039,0.32764472,2452.0,2451.6,3.74217815]
[1728451505243,0.06509706,2451.9,2451.7,0.7799]
[1728451505533,0.06509706,2451.9,2451.7,1.64000382]
[1728451506347,0.06509706,2451.9,2451.8,3.74217815]
[1728451506745,0.06509706,2451.9,2451.8,8.62260815]
[1728451508536,0.1209334,2452.0,2451.9,4.86166]
[1728451508953,0.18157422,2452.0,2451.9,4.86166]
[1728451509151,0.18157422,2452.0,2451.9,6.01432618]
[1728451522604,0.18157422,2452.0,2451.9,6.01432618]
[1728451524329,0.18157422,2452.0,2451.9,7.74059417]
[1728451536611,0.1209334,2452.0,2451.9,7.74059417]
[1728451540355,0.18170344,2452.0,2451.9,7.74059417]
[1728451545403,0.18170344,2452.0,2451.9,5.23112618]
[1728451545669,0.18170344,2452.0,2451.9,6.95739417]
[1728451546764,0.1209334,2452.0,2451.9,6.95739417]
[1728451546975,0.18157631,2452.0,2451.9,6.95739417]
[1728451548028,0.1209334,2452.0,2451.9,6.95739417]
[1728451548231,0.18156514,2452.0,2451.9,6.95739417]
[1728451551272,0.18156514,2452.0,2451.9,2.87893417]
[1728451551678,0.18156514,2452.0,2451.7,1.72626799]
[1728451552167,4.07848,2451.9,2451.4,4.88052]
[1728451552388,4.07848,2451.9,2451.5,1.72626799]
[1728451552697,0.0606543,2451.8,2451.5,1.72626799]
[1728451563727,4.1393043,2451.8,2451.5,1.72626799]
[1728451563914,0.0606543,2451.8,2451.5,1.72626799]
[1728451564327,4.1393043,2451.8,2451.5,1.72626799]
[1728451564526,4.07882,2451.7,2451.2,0.8292]
[1728451564727,4.07882,2451.7,2451.2,3.04635799]
[1728451564935,0.06044492,2451.6,2451.4,1.72626799]
[1728451565094,8.15714,2451.9,2451.4,1.72626799]
[1728451565509,0.06061639,2451.8,2451.4,1.72626799]
[1728451566199,4.13928639,2451.8,2451.4,1.72626799]
[1728451567136,0.06061639,2451.8,2451.4,1.72626799]
[1728451569134,4.13926639,2451.8,2451.4,1.72626799]
[1728451569345,0.06061639,2451.8,2451.4,1.72626799]
[1728451569640,4.13937639,2451.8,2451.4,1.72626799]
[1728451570231,4.13937639,2451.8,2451.2,7.12596799]
[1728451570603,4.07889,2451.7,2451.2,3.04635799]
[1728451570943,4.13940501,2451.7,2451.2,3.04635799]
[1728451571103,4.13940501,2451.7,2451.2,1.72626799]
[1728451571304,4.07947,2451.3,2450.8,4.89448]
[1728451571546,4.07934,2451.4,2450.8,6.62074799]
[1728451571772,0.06006683,2451.2,2450.8,6.62074799]
[1728451571921,4.0792,2451.5,2450.9,1.0701108]
[1728451572131,4.07964,2451.2,2450.8,2.54046799]
[1728451572436,4.07959,2451.3,2450.8,1.72626799]
[1728451572437,0.05986023,2451.1,2450.8,1.72626799]
[1728451572629,0.05986023,2451.1,2450.8,5.80653799]
[1728451572831,8.15851,2451.5,2450.9,0.9886898]
[1728451573060,0.05975138,2451.0,2450.9,4.08011]
[1728451573240,4.07932,2451.4,2450.9,4.08011]
[1728451573440,0.05969734,2451.0,2450.9,4.08011]
[1728451573764,0.05985317,2451.0,2450.9,4.08011]
[1728451573969,4.07932,2451.4,2450.9,4.08011]
[1728451574167,0.05983831,2451.0,2450.9,4.08011]
[1728451574468,4.07932,2451.4,2450.9,5.0687838]
[1728451574625,0.05983831,2451.0,2450.8,5.80654799]
[1728451574821,4.0795,2451.3,2450.8,1.72626799]
[1728451575063,0.05975252,2450.9,2450.3,4.08101]
[1728451575374,3.0,2451.3,2450.5,4.08078]
[1728451575375,0.05962335,2450.8,2450.5,4.08078]
[1728451575661,4.0799,2451.1,2450.5,5.80704799]
[1728451575861,0.05953508,2450.7,2450.5,5.80704799]
[1728451576021,4.0799,2451.1,2450.5,6.87152379]
[1728451576222,0.05944928,2450.6,2450.5,6.87152379]
[1728451576467,4.0799,2451.1,2450.5,6.87152379]
[1728451576665,4.0799,2451.1,2450.5,10.95221379]
[1728451576958,0.05976765,2451.0,2450.5,6.87143379]
[1728451577160,0.05976765,2451.0,2450.6,0.76281338]
[1728451577668,0.05976765,2451.0,2450.5,6.87143379]
[1728451577669,4.13977765,2451.0,2450.5,6.87143379]
[1728451578728,0.05976765,2451.0,2450.5,6.87143379]
[1728451581980,0.05976765,2451.0,2450.1,0.7699]
[1728451582206,4.08097,2450.4,2449.8,0.7699]
[1728451582490,7.08124,2450.3,2449.8,0.7699]
[1728451582640,3.05921681,2450.3,2449.7,4.08212]
[1728451582835,7.14036681,2450.3,2449.7,4.08212]
[1728451583041,7.14036681,2450.3,2449.6,2.49616799]
[1728451583042,4.0813,2450.2,2449.6,6.57843799]
[1728451583352,4.0813,2450.2,2449.6,0.7699]
[1728451583353,4.14059799,2450.2,2449.6,0.7699]
[1728451583682,4.14059799,2450.2,2449.6,6.57845799]
[1728451584036,4.14059799,2450.2,2449.6,2.49616799]
[1728451584250,4.08151,2450.1,2449.6,0.7699]
[1728451584470,4.08151,2450.1,2449.6,2.49616799]
[1728451584654,4.08151,2450.1,2449.6,3.15402279]
[1728451584869,0.05915399,2450.0,2449.6,3.15402279]
[1728451585241,4.0813,2450.2,2449.6,3.15402279]
[1728451585477,0.05906068,2449.9,2449.6,3.15402279]
[1728451585678,4.0813,2450.2,2449.7,0.72364028]
[1728451585981,0.05897484,2449.8,2449.6,2.49616799]
[1728451586280,4.0813,2450.2,2449.6,2.49616799]
[1728451586573,4.0813,2450.2,2449.8,1.72626799]
[1728451588274,3.0,2450.3,2450.0,2.50176799]
[1728451589174,7.08114,2450.3,2450.0,2.50176799]
[1728451591272,4.08131,2450.2,2450.0,0.7755]
[1728451591504,4.08131,2450.2,2449.8,2.48736799]
[1728451591505,4.08151,2450.1,2449.8,2.48736799]
[1728451591708,4.08151,2450.1,2449.6,2.52896799]
[1728451591883,4.08164,2450.0,2449.6,2.93720699]
[1728451592087,4.08131,2450.2,2449.6,2.93720699]
[1728451592383,8.16272,2450.2,2449.6,2.93720699]
[1728451592594,4.08148,2450.1,2449.6,2.93720699]
[1728451592909,4.08148,2450.1,2449.7,0.7019537]
[1728451595408,0.05895234,2450.0,2449.7,0.7019537]
[1728451595775,4.14058234,2450.0,2449.7,0.7019537]
[1728451595981,4.14058234,2450.0,2449.6,2.93720699]
[1728451596825,4.14058234,2450.0,2449.6,2.52896799]
[1728451597116,4.08181,2449.9,2449.6,0.8027]
[1728451597412,0.05876949,2449.8,2449.3,4.08269]
[1728451597618,4.14075949,2449.8,2449.4,2.90793699]
[1728451597786,4.14075949,2449.8,2449.4,2.49966799]
[1728451597787,4.08217,2449.7,2449.4,2.49966799]
[1728451597989,4.14083999,2449.7,2449.4,2.49966799]
[1728451598700,4.14083999,2449.7,2449.4,0.7734]
[1728451599091,4.08233,2449.6,2449.2,2.51236799]
[1728451599401,4.08233,2449.6,2449.2,0.6595478]
[1728451599402,0.05841059,2449.5,2449.2,0.6595478]
[1728451599605,4.14096059,2449.5,2449.0,0.7861]
[1728451600486,4.0828,2449.3,2449.0,0.7861]
[1728451600685,4.0828,2449.3,2449.0,1.0373368]
[1728451600904,0.0581157,2449.2,2449.0,1.0373368]
[1728451601212,4.0828,2449.3,2449.0,1.0373368]
[1728451601417,0.05806681,2449.1,2449.0,1.0373368]
[1728451601618,4.0828,2449.3,2449.0,1.0373368]
[1728451601791,0.05825184,2449.1,2449.0,1.0373368]
[1728451601997,4.0828,2449.3,2449.0,1.0373368]
[1728451602190,0.05796426,2449.1,2449.0,1.0373368]
[1728451602399,4.0828,2449.3,2449.0,1.0373368]
[1728451602578,0.05796426,2449.1,2449.0,1.0373368]
[1728451602804,4.0828,2449.3,2449.0,1.0373368]
[1728451603012,0.05796426,2449.1,2449.0,0.7861]
[1728451603199,4.0828,2449.3,2449.0,0.7861]
[1728451603407,0.05796303,2449.1,2449.0,0.7861]
[1728451603626,4.0828,2449.3,2449.0,0.7861]
[1728451603825,0.05796303,2449.1,2449.0,0.7861]
[1728451604025,4.0828,2449.3,2449.0,0.7861]
[1728451604330,0.05789601,2449.1,2448.6,4.08395]
[1728451604479,4.08303,2449.2,2448.7,3.30946499]
[1728451604684,0.0578101,2449.0,2448.7,3.30946499]
[1728451604885,0.05789477,2449.1,2448.7,3.30946499]
[1728451605116,0.05771922,2448.9,2448.7,3.30946499]
[1728451605419,4.08303,2449.2,2448.7,3.30946499]
[1728451605420,0.0576333,2448.8,2448.7,3.30946499]
[1728451605630,4.08303,2449.2,2448.7,3.30946499]
[1728451605810,0.0576271,2448.8,2448.7,3.30946499]
[1728451605996,4.08303,2449.2,2448.7,3.30946499]
[1728451606196,4.0828,2449.3,2448.8,0.7393415]
[1728451607337,4.0828,2449.3,2448.8,4.8229515]
[1728451607632,7.08263,2449.4,2448.9,6.57291799]
[1728451607790,3.0,2449.4,2448.9,7.71251494]
[1728451608645,3.0,2449.4,2448.9,3.62916494]
[1728451608787,4.0828,2449.3,2448.9,3.62916494]
[1728451609412,4.0828,2449.3,2448.9,1.90289695]
[1728451610023,4.0828,2449.3,2448.8,0.7393415]
[1728451610220,0.05792976,2449.2,2448.8,0.7393415]
[1728451610424,4.0828,2449.3,2448.8,0.7393415]
[1728451610631,0.05784882,2449.1,2448.8,0.7393415]
[1728451610788,4.0828,2449.3,2448.8,0.7393415]
[1728451610994,0.05776292,2449.0,2448.8,2.46560949]
[1728451611294,4.0828,2449.3,2448.9,0.73589095]
[1728451611607,4.0828,2449.3,2449.0,0.8096]
[1728451611995,3.0,2449.4,2449.0,2.53586799]
[1728451612304,7.08266,2449.4,2449.0,2.53586799]
[1728451612499,3.0,2449.4,2449.0,2.53586799]
[1728451612704,3.0,2449.4,2449.0,3.67970988]
[1728451613394,7.08272,2449.4,2449.0,3.67970988]
[1728451618734,7.08272,2449.4,2449.0,1.95344189]
[1728451621501,3.0,2449.4,2449.0,1.95344189]
[1728451621702,3.0,2449.4,2449.0,0.8096]
[1728451623749,7.08268,2449.4,2449.0,0.8096]
[1728451623946,4.08289,2449.3,2449.0,0.8096]
[1728451624463,4.08296,2449.2,2449.0,0.8096]
[1728451624958,4.08282,2449.3,2449.0,0.8096]
[1728451625365,0.05784637,2449.2,2449.0,0.8096]
[1728451625565,4.08282,2449.3,2449.0,0.8096]
[1728451625736,7.08268,2449.4,2449.0,0.8096]
[1728451626239,0.05791858,2449.3,2449.0,0.8096]
[1728451628875,4.14076858,2449.3,2449.0,0.8096]
[1728451630137,0.05791858,2449.3,2449.0,0.8096]
[1728451632533,0.05791858,2449.3,2449.0,1.4715488]
[1728451633035,0.05791858,2449.3,2449.0,3.19781679]
[1728451633234,3.0,2449.7,2449.3,0.7601]
[1728451633435,7.08222,2449.7,2449.3,0.7601]
[1728451636533,3.0,2449.7,2449.3,0.7601]
[1728451637093,7.08216,2449.7,2449.3,0.7601]
[1728451638447,3.0,2449.7,2449.3,0.7601]
[1728451638693,7.08213,2449.7,2449.3,1.8253298]
[1728451640297,0.0579013,2449.6,2449.3,1.8253298]
[1728451640660,4.1403113,2449.6,2449.3,1.8253298]
[1728451640859,4.1403113,2449.6,2449.3,0.7601]
[1728451642056,0.0579013,2449.6,2449.3,0.7601]
[1728451642591,4.1402313,2449.6,2449.3,0.7601]
[1728451646598,4.08297,2449.2,2448.8,0.7661]
[1728451646801,0.0579013,2449.6,2448.8,0.7661]
[1728451647003,4.14091087,2449.1,2448.8,0.7661]
[1728451647209,4.08313,2449.1,2448.8,0.7661]
[1728451647366,0.05769497,2449.0,2448.8,0.7661]
[1728451647702,0.05769497,2449.0,2448.8,1.2919403]
[1728451647910,0.05769497,2449.0,2448.8,0.7661]
[1728451648377,4.08299,2449.2,2448.8,0.7661]
[1728451648704,0.0577697,2449.1,2448.8,0.7661]
[1728451649309,3.0577697,2449.1,2448.8,0.7661]
[1728451651917,4.08346,2448.9,2448.4,4.85658]
[1728451652077,4.08346,2448.9,2448.4,1.85989075]
[1728451652281,0.05742011,2448.8,2448.4,1.85989075]
[1728451652996,4.14106011,2448.8,2448.4,1.85989075]
[1728451653170,4.08381,2448.7,2448.4,0.7723]
[1728451653507,0.05724204,2448.6,2448.4,0.7723]
[1728451655695,0.05724204,2448.6,2448.1,5.81094799]
[1728451656029,0.05724204,2448.6,2448.2,0.7514]
[1728451656332,4.14122204,2448.6,2448.2,1.4076348]
[1728451656497,4.08414,2448.5,2448.2,1.4076348]
[1728451656689,4.1412824,2448.5,2448.2,1.4076348]
[1728451657439,0.0571424,2448.5,2448.2,1.4076348]
[1728451657730,4.08399,2448.6,2448.2,1.4076348]
[1728451657936,0.05704032,2448.4,2448.2,1.4076348]
[1728451658112,4.08399,2448.6,2448.2,1.4076348]
[1728451658322,0.05695438,2448.3,2448.2,1.4076348]
[1728451658619,0.05694568,2448.3,2448.2,1.4076348]
[1728451658942,4.08381,2448.7,2448.2,5.4922548]
[1728451659140,0.05694568,2448.3,2448.2,5.4922548]
[1728451659336,4.08381,2448.7,2448.2,1.4076348]
[1728451659637,4.08381,2448.7,2448.2,0.7514]
[1728451660100,0.05711609,2448.6,2448.2,0.7514]
[1728451664661,0.05711609,2448.6,2448.2,4.0846]
[1728451664828,0.05711609,2448.6,2448.3,0.8193]
[1728451672861,0.05711609,2448.6,2448.4,4.84039]
[1728451673072,3.0,2448.8,2448.4,5.9055018]
[1728451673362,0.05706195,2448.5,2448.4,5.9055018]
[1728451673566,3.0,2448.8,2448.4,5.9055018]
[1728451674025,0.05724374,2448.7,2448.4,5.9055018]
[1728451674227,3.0,2448.8,2448.4,5.9055018]
[1728451674428,0.05715781,2448.6,2448.4,5.9055018]
[1728451674628,3.0,2448.8,2448.5,1.17162298]
[1728451674870,0.05707188,2448.5,2448.4,4.84039]
[1728451675162,3.0,2448.8,2448.4,0.7561]
[1728451675657,0.05725244,2448.7,2448.4,0.7561]